[Event "European Women-ch 2023"]
[Site "Petrovac"]
[Date "2023.03.20"]
[Round "3.20"]
[White "Urh, Zala"]
[Black "Berke, Ana"]
[Result "1-0"]
[ECO "E25"]
[WhiteElo "2294"]
[BlackElo "2107"]
[Annotator "TA"]
[PlyCount "61"]
[EventDate "2023.03.15"]
[EventType "swiss"]
[EventCountry "MNE"]
[SourceTitle "playchess.com"]
[Source "ChessBase"]
[SourceQuality "1"]
[TimeControl "40/5400+30:1800+30"]

{[%evp 24,61,0,0,27,31,43,20,41,35,35,25,55,54,47,0,0,0,0,0,54,0,7,13,25,24,47,25,202,194,289,289,277,279,278,290,1559,1373,29983,29984]} 1. d4 {[%emt 0:00:12]} Nf6 {[%emt 0:00:07]} 2. c4 {[%emt 0:00:09]} e6 {[%emt 0:00:08]} 3. Nc3 {[%emt 0:00:04]} Bb4 {[%emt 0:00:13]} 4. a3 {[%emt 0:00:20]} Bxc3+ {[%emt 0:00:19]} 5. bxc3 {[%emt 0:00:05]} c5 {[%emt 0:00:50]} 6. f3 {[%emt 0:00:29]} d5 {[%emt 0:00:18]} 7. cxd5 {[%emt 0:00:17]} Nxd5 {[%emt 0:02:13]} 8. dxc5 {[%emt 0:00:29]} Qa5 {[%emt 0:02:37]} 9. e4 {[%emt 0:00:39]} Nf6 {[%emt 0:00:36][%cal Bd5f6,Bf6d7,Bd7e5,Be5c4][%mdl 32]} 10. Be3 {[%emt 0:00:39]} O-O {[%emt 0:00:54]} 11. Qb3 {[%emt 0:01:17]} Nfd7 {[%emt 0:01:11]} 12. a4 {[%emt 0:00:40]} Qc7 {[%emt 0:00:59]} 13. Qa3 {[%emt 0:00:23]} Na6 {[%emt 0:02:27] E25: Nimzo-Indian: Sämisch: 5...c5 6 f3 d5 7 cxd5.} 14. Bxa6 {[%emt 0:00:59]} bxa6 {[%emt 0:01:12]} 15. Ne2 {[%emt 0:01:24]} Ne5 $1 {[%emt 0:07:23] The position is equal.} 16. O-O {[%emt 0:01:10] Bf4 would be deadly.} Nc4 {[%emt 0:06:57][%csl LRa3,LRe3]} 17. Qc1 {[%emt 0:00:14]} e5 {[%emt 0:02:17] [#]} 18. Bf2 $146 {[%emt 0:07:42]} ({Predecessor:} 18. f4 Bb7 19. fxe5 Nxe3 20. Qxe3 Rac8 21. Rab1 Ba8 22. e6 fxe6 23. Rxf8+ Rxf8 24. Rf1 {1-0 Moskalenko,V (2525)-Lawson,D (2315) St Martin op 1991 (9)}) 18... Rb8 {[%emt 0:05:04]} 19. Rd1 {[%emt 0:13:36]} (19. Nd4 $14) 19... Rb2 $11 {[%emt 0:03:29]} 20. Ng3 {[%emt 0:06:29]} Be6 {[%emt 0:13:39]} 21. Nf5 {[%emt 0:07:47]} Rfb8 {[%emt 0:19:47]} (21... Rxf2 $11 22. Kxf2 Bxf5 23. exf5 Qxc5+ 24. Kg3 Ne3) 22. h4 {[%emt 0:09:26]} (22. Rd3 $14) 22... f6 {[%emt 0:02:10]} 23. Rd3 {[%emt 0:08:53]} Bxf5 {[%emt 0:06:46]} (23... Na3 $5 {[%cal Rb2b1]} 24. Qf1 (24. Rxa3 Rb1 $17) 24... Bc4 $11) 24. exf5 {[%emt 0:00:19] aiming for Qe1.} e4 {[%emt 0:05:51]} 25. fxe4 {[%emt 0:05:13] With the idea Qe1.} Rxf2 $2 {[%emt 0:05:39] This costs Black the game.} 26. Kxf2 $18 {[%emt 0:01:48]} Rb2+ {[%emt 0:03:04]} (26... Re8 $142) 27. Kg1 {[%emt 0:02:37] [#] And now Rb1 would win.} Qxc5+ {[%emt 0:03:00]} 28. Rd4 {[%emt 0:01:16]} h6 {[%emt 0:03:39]} 29. Kh1 {[%emt 0:02:22][%cal Od4c4] Rxc4! is the strong threat.} Re2 $2 {[%emt 0:00:16]} (29... Rb8 30. Rb1 Rc8) 30. Qf1 {[%emt 0:00:58]} Re3 {[%emt 0:01:48]} 31. Qxc4+ {[%emt 0:00:09] Weighted Error Value: White=0.09 (flawless) /Black=0.59} 1-0

[Event "European Women-ch 2023"]
[Site "Petrovac"]
[Date "2023.03.20"]
[Round "3.20"]
[White "Recica, Jona"]
[Black "Slaba, Andrea"]
[Result "0-1"]
[ECO "B19"]
[WhiteElo "1231"]
[BlackElo "2061"]
[Annotator "TA"]
[PlyCount "88"]
[EventDate "2023.03.15"]
[EventType "swiss"]
[EventCountry "MNE"]
[SourceTitle "playchess.com"]
[Source "ChessBase"]
[SourceQuality "1"]
[TimeControl "40/5400+30:1800+30"]

{[%evp 24,88,23,0,12,8,7,16,0,0,7,13,24,-310,132,43,49,-20,12,0,0,-37,-47,-15,0,-27,-4,-7,0,-39,0,-36,-25,-45,-50,-40,-39,-103,-10,-13,-8,-9,-12,-7,-12,-17,-3,-77,-108,-185,-88,-299,-279,-275,-271,-1197,-1195,-1088,-1055,-1031,-972,-6919,-888,-917,-874,-722,-691]} 1. e4 {[%emt 0:00:09] Marin,Mihail} c6 {[%emt 0:00:02]} 2. d4 {[%emt 0:00:07]} d5 {[%emt 0:00:05]} 3. Nc3 {[%emt 0:00:08]} dxe4 {[%emt 0:00:05]} 4. Nxe4 {[%emt 0:00:22]} Bf5 {[%emt 0:00:04]} 5. Ng3 {[%emt 0:00:43]} Bg6 {[%emt 0:00:05]} 6. h4 {[%emt 0:00:46]} h6 {[%emt 0:00:05]} 7. h5 {[%emt 0:00:56]} Bh7 {[%emt 0:00:05]} 8. Nf3 {[%emt 0:01:32]} Nd7 {[%emt 0:00:39]} 9. Bd3 {[%emt 0:00:36]} Bxd3 {[%emt 0:00:07]} 10. Qxd3 {[%emt 0:01:15]} Ngf6 {[%emt 0:00:13]} 11. Bf4 {[%emt 0:01:07]} e6 {[%emt 0:00:14]} 12. O-O-O {[%emt 0:01:30]} Be7 {[%emt 0:00:07]} 13. Ne4 {[%emt 0:03:22] is the legacy move (13.Kb1).} Nxe4 {[%emt 0:00:08] B19: Classical Caro-Kann: 4...Bf5 main line.} 14. Qxe4 {[%emt 0:01:22]} Nf6 {[%emt 0:00:06]} 15. Qe2 {[%emt 0:04:36]} Qd5 {[%emt 0:00:26][%csl LRa2,LRh5] The position is equal.} 16. c4 {[%emt 0:11:36]} Qe4 {[%emt 0:05:21]} 17. Qxe4 {[%emt 0:00:30]} Nxe4 {[%emt 0:00:30] [#]} 18. Ne5 $146 {[%emt 0:00:30][%mdl 8192]} (18. Be3 $11) ({Predecessor:} 18. Be3 O-O 19. Ne5 Bd6 20. f3 Ng3 21. Rh3 Nf5 22. Bf2 Rad8 23. g4 Ne7 24. Nd3 {1-0 Anand,V (2803)-Ponomariov,R (2738) Sofia MTel Masters 2nd 2006 (4)}) 18... f5 $2 {[%emt 0:00:30]} (18... Nxf2 $19 19. Kc2 O-O) 19. Rhf1 {[%emt 0:00:30]} (19. Ng6 $16 {And now f3 would win.} Rg8 20. Rhe1) 19... O-O $14 {[%emt 0:25:48]} 20. Be3 (20. f3 $14 Nf6 21. Rh1) 20... Bg5 {[%emt 0:00:00]} (20... f4 $5 {[%cal Rf4e3]} 21. Bd2 Nxd2 22. Kxd2 Rf5 $11) 21. f4 {[%emt 0:17:20]} Bf6 {[%emt 0:00:00]} 22. Ng6 {[%emt 0:01:40]} Rfd8 {[%emt 0:00:00]} 23. Rf3 {[%emt 0:10:27][%cal Bf1f3,Bf3e3,Be3b3][%mdl 32]} Rac8 {[%emt 0:00:00]} 24. Bg1 {[%emt 0:05:46]} Nd6 {[%emt 0:24:06]} 25. c5 {[%emt 0:09:40]} Ne4 {[%emt 0:00:45]} 26. Re3 {[%emt 0:02:54]} b6 {[%emt 0:02:36]} (26... Rxd4 $2 27. Rxd4 Bxd4 28. Ne7+ Kh7 29. Nxc8 $18) 27. cxb6 {[%emt 0:03:34]} (27. Rb3 $5 {[%cal Rc5b6]}) 27... axb6 {[%emt 0:00:04][%cal Ba7b6,Bb6b5][%mdl 32]} (27... Rxd4 $2 28. Rxd4 axb6 29. Rd7 $18) (27... c5 {looks sharper.} 28. d5 exd5 29. bxa7 Ra8) 28. Rb3 {[%emt 0:03:06]} b5 {[%emt 0:03:46]} 29. Kb1 {[%emt 0:01:42]} Rb8 {[%emt 0:04:53]} 30. Rdd3 {[%emt 0:03:15] [#]} (30. Kc2 $15) 30... Kf7 {[%emt 0:02:26]} ({Black should try} 30... c5 $1 $17 {[%cal Rc5c4] ...c4 is the strong threat.} 31. dxc5 Nd2+ 32. Kc2 Nxb3 33. Rxb3 Kf7) 31. Ra3 $11 {[%emt 0:01:01]} Ra8 {[%emt 0:00:14]} 32. Rxa8 {[%emt 0:02:58]} Rxa8 {[%emt 0:00:07]} 33. Ne5+ {[%emt 0:01:05]} Bxe5 {[%emt 0:00:10]} 34. dxe5 {[%emt 0:00:20][%mdl 4096] Endgame KRB-KRN} Ke7 {[%emt 0:00:22]} 35. Re3 {[%emt 0:01:52]} (35. Bh2 $11 {remains equal.}) 35... Rd8 $17 {[%emt 0:00:47] Black is more active.} 36. Re1 {[%emt 0:00:57] Inhibits Rd1+.} (36. Kc1 $17 {might work better.}) 36... Rd5 {[%emt 0:05:59]} (36... Rd2 $19 37. g4 fxg4) 37. Bh2 $2 {[%emt 0:03:42]} (37. Kc1 $17 {was worth a try.}) 37... Rd2 $19 {[%emt 0:01:05]} 38. Rg1 {[%emt 0:01:12]} c5 {[%emt 0:02:12]} 39. b3 $2 {[%emt 0:01:02]} (39. Rc1) 39... Nc3+ {[%emt 0:00:34][%mdl 64] [#] Deflection, Double Attack. Black is clearly winning.} 40. Kc1 {[%emt 0:00:00]} Rxa2 {[%emt 0:00:00] Strongly threatening ...b4.} ({Weaker is} 40... Nxa2+ 41. Kxd2 Nb4 42. Rc1 $18) 41. Re1 {[%emt 0:02:46]} Rxg2 {[%emt 0:00:25]} 42. Rh1 {[%emt 0:01:28]} Ra2 {[%emt 0:00:23]} (42... c4 $142 43. b4 Na2+ 44. Kb1 c3 45. Ka1 c2 46. Bg3 Rd2 47. Bh4+ Kf7 48. Rg1 Rd1+ 49. Rxd1 cxd1=Q+ 50. Kxa2 Qc2+ 51. Ka1 Ke8 52. Bg3 Kd7 53. Bf2 Qxf2 54. Kb1 Kc6 55. Kc1 Kd5 56. Kd1 Kc4 57. Kc1 Kc3 58. Kd1 Qf1#) 43. Bg1 {[%emt 0:00:34]} Ne4 {[%emt 0:00:32]} 44. Kb1 {[%emt 0:00:58]} Re2 {[%emt 0:00:07] Weighted Error Value: White=0.83/Black=0.49} 0-1

[Event "European Women-ch 2023"]
[Site "Petrovac"]
[Date "2023.03.20"]
[Round "3.21"]
[White "Kulon, Klaudia"]
[Black "Pogorelskikh, Sofia"]
[Result "0-1"]
[ECO "A17"]
[WhiteElo "2290"]
[BlackElo "2102"]
[Annotator "TA"]
[PlyCount "106"]
[EventDate "2023.03.15"]
[EventType "swiss"]
[EventCountry "MNE"]
[SourceTitle "playchess.com"]
[Source "ChessBase"]
[SourceQuality "1"]
[TimeControl "40/5400+30:1800+30"]

{[%evp 9,106,9,17,8,18,13,13,-13,-7,-5,0,-8,-8,-15,-22,-98,-70,-141,-125,-103,-38,-38,-59,-54,-31,-256,-259,-259,-259,-249,-272,-243,-255,-248,-247,-325,-330,-319,-254,-568,-577,-752,-731,-669,-620,-1954,-1913,-1402,-889,-782,-829,-995,-968,-890,-454,-589,-525,-579,-450,-435,-427,-456,-426,-367,-115,-329,-334,-389,-386,-800,-794,-844,-621,-833,-823,-825,-822,-801,-797,-795,-781,-29985,-29986,-29986,-29966,-29966,-29964,-29982,-29962,-29976,-29969,-29985,-29986,-29990,-29991,-29991,-29992,-29992,-29993]} 1. Nf3 {[%emt 0:00:03]} d5 {[%emt 0:00:12]} 2. e3 {[%emt 0:00:09]} Nf6 {[%emt 0:02:34]} 3. c4 {[%emt 0:00:04]} e6 {[%emt 0:00:59]} 4. Nc3 {[%emt 0:00:06]} Bd6 {[%emt 0:01:46]} 5. b3 {[%emt 0:00:26]} a6 {[%emt 0:02:55]} 6. Bb2 {[%emt 0:00:37] A17: English Opening: 1...Nf6 with ...Bb4.} b6 {[%emt 0:00:54]} 7. cxd5 {[%emt 0:00:51] 7.d4 is vanishing.} exd5 {[%emt 0:00:19]} 8. Be2 {[%emt 0:00:55] The position is equal.} O-O {[%emt 0:01:00][%cal Bh8f8,Bf8e8,Be8e5][%mdl 32]} 9. O-O {[%emt 0:00:13]} Bb7 {[%emt 0:01:46]} 10. Qc2 {[%emt 0:03:29]} Nbd7 {[%emt 0:01:41] [#]} 11. Qf5 $146 {[%emt 0:07:23]} ({Predecessor:} 11. a3 Re8 12. Rfe1 Rc8 13. b4 c5 14. bxc5 bxc5 15. Qf5 d4 16. exd4 cxd4 17. Nxd4 {½-½ Afanasiev,N (2562)-Drygalov,A (2502) Ekaterinburg Scerbin Memorial rapid 2023 (11)}) 11... Re8 {[%emt 0:02:34]} 12. Bd3 {[%emt 0:08:40]} (12. d4 $11) 12... Ne5 {[%emt 0:08:58]} 13. Nxe5 {[%emt 0:02:55]} (13. Be2 $1 $15) 13... Rxe5 $17 {[%emt 0:02:24]} 14. Qf3 {[%emt 0:00:48]} Qc8 {[%emt 0:06:59]} (14... Rb8 $17 {[%cal Od5d4] ...d4! is the strong threat.} 15. Nd1 Re6) 15. Qd1 {[%emt 0:05:08] [#]} d4 $1 {[%emt 0:09:06]} 16. Ne2 $1 {[%emt 0:03:43]} Bf3 {[%emt 0:12:18]} (16... c5 {simplifies} 17. Ng3 Qc6 18. f3 Rae8) 17. Qc2 $2 {[%emt 0:11:55] Black continues to play with concentration.} (17. gxf3 Qh3 18. Bxh7+ Nxh7 19. Ng3 Rh5 20. Re1 Bxg3 21. fxg3 Qxh2+ 22. Kf1 Rh3 23. exd4 Rxg3) (17. Qb1 $1 $15) 17... Rc5 $19 {[%emt 0:05:11]} 18. Qxc5 {[%emt 0:11:01]} Qg4 $40 {[%emt 0:05:58][%csl Gf3][%cal Rg4g2][%mdl 128] Black has strong attack.} (18... bxc5 19. gxf3 h5 20. Kg2 $19) 19. Ng3 {[%emt 0:00:19]} (19. Bxh7+ $2 Nxh7 20. Ng3 bxc5 $19) 19... bxc5 {[%emt 0:01:51]} (19... Bxc5 $2 {perishes.} 20. Bf5 Qg5 21. gxf3) 20. gxf3 {[%emt 0:00:28]} Qxf3 {[%emt 0:01:01]} 21. Be2 {[%emt 0:00:40]} Qd5 {[%emt 0:01:46]} 22. Bc4 {[%emt 0:00:05]} Qg5 {[%emt 0:01:34]} 23. Rae1 {[%emt 0:06:39]} Re8 {[%emt 0:08:29]} 24. Kg2 $2 {[%emt 0:00:53]} (24. f4 {is a better chance.} Qg4 25. Re2) 24... h5 {[%emt 0:03:09][%cal Bh7h5,Bh5h4,Bh4h3][%mdl 32]} 25. Kh1 {[%emt 0:06:07]} h4 {[%emt 0:01:19]} 26. Ne2 {[%emt 0:00:06]} Ne4 {[%emt 0:02:12]} 27. exd4 {[%emt 0:02:11]} h3 {[%emt 0:04:05][%csl Gh3][%cal Rg5g2]} 28. Ng3 {[%emt 0:00:56]} Bxg3 {[%emt 0:05:25]} 29. hxg3 {[%emt 0:01:50] [#]} Nxf2+ $1 {[%emt 0:00:32][%mdl 576] Deflection} 30. Rxf2 {[%emt 0:00:59]} (30. Kh2 Rxe1) 30... Rxe1+ {[%emt 0:00:09]} 31. Kh2 {[%emt 0:00:05]} Re7 {[%emt 0:04:43]} 32. Ba3 {[%emt 0:01:27]} Re4 {[%emt 0:02:01] Prevents Rf4.} 33. Bxc5 {[%emt 0:01:06]} Rg4 {[%emt 0:00:32]} 34. Rxf7 {[%emt 0:00:45] [#]} Kh7 $1 {[%emt 0:00:32]} ({But not} 34... Rxg3 35. Rf5+ (35. Rxc7+ {gets mated.} Kh7) 35... Kh7 36. Rxg5 Rxg5 37. Bxa6 Rg2+ 38. Kxh3 $18) 35. Rf3 {[%emt 0:00:01]} Qxd2+ {[%emt 0:00:31]} 36. Kxh3 {[%emt 0:00:01]} Qg5 {[%emt 0:00:31]} (36... Rg5 $19 {( -> ...Rh5+)} 37. Be7 Rh5+ 38. Kg4 Qd1 39. Bd3+ Kh6) 37. Bd3+ $2 {[%emt 0:01:44]} (37. Bxa6 $17 {was the only defense.} Kh6 38. Bd3) 37... Kh6 {[%emt 0:00:15]} 38. a4 {[%emt 0:14:10]} a5 {[%emt 0:00:35][%cal Ba6a5,Ba5b4,Bb4b3,Bb3b2][%mdl 32]} 39. b4 $2 {[%emt 0:00:23]} (39. Bb1) 39... axb4 {[%emt 0:00:16]} 40. a5 {[%emt 0:00:00]} Qh5+ {[%emt 0:00:00]} 41. Kg2 {[%emt 0:00:08]} Qd5 {[%emt 0:03:32] aiming for ...b3.} 42. a6 {[%emt 0:03:53]} b3 {[%emt 0:06:20] Hoping for ...b2.} 43. a7 {[%emt 0:04:08]} b2 {[%emt 0:01:36]} 44. Kf2 {[%emt 0:05:02] [#]} Rg6 $1 {[%emt 0:05:32][%cal Od5a2][%mdl 64] ...Qa2! would be deadly. Promotion} 45. Re3 {[%emt 0:08:27]} (45. Rf4 Re6) 45... Rf6+ {[%emt 0:01:39] Black mates.} 46. Kg1 {[%emt 0:05:59]} Rf3 {[%emt 0:04:13]} 47. Rxf3 {[%emt 0:07:24]} Qxf3 {[%emt 0:00:14]} 48. Bc2 {[%emt 0:00:02]} Kh5 {[%emt 0:02:32]} 49. d5 {[%emt 0:01:52]} Qxd5 {[%emt 0:00:30]} 50. Bf2 {[%emt 0:00:04]} Kg4 {[%emt 0:01:05]} 51. Kf1 {[%emt 0:02:06]} Qc4+ {[%emt 0:00:38]} 52. Kg2 {[%emt 0:00:26]} Qc6+ {[%emt 0:00:14]} 53. Kg1 {[%emt 0:00:30]} Qxc2 {[%emt 0:00:30] A brilliant game!   Weighted Error Value: White=0.86/Black=0.61} 0-1

[Event "European Women-ch 2023"]
[Site "Petrovac"]
[Date "2023.03.20"]
[Round "3.21"]
[White "Pirvulescu, Ekaterina"]
[Black "Kostina, Veronika"]
[Result "1-0"]
[ECO "B13"]
[WhiteElo "2032"]
[BlackElo "1855"]
[Annotator "TA"]
[PlyCount "93"]
[EventDate "2023.03.15"]
[EventType "swiss"]
[EventCountry "MNE"]
[SourceTitle "playchess.com"]
[Source "ChessBase"]
[SourceQuality "1"]
[TimeControl "40/5400+30:1800+30"]

{[%evp 11,93,22,23,29,39,30,35,41,50,7,25,15,42,46,51,63,52,19,8,16,31,13,54,49,61,47,55,53,40,32,89,48,48,16,16,-31,14,23,21,0,16,4,39,20,19,0,31,42,383,377,380,358,352,361,301,238,461,455,537,451,935,915,1312,774,884,795,795,639,795,776,860,876,851,846,997,931,855,843,1329,1158,1627,1363,1152,1125]} 1. e4 {[%emt 0:00:02]} c6 {[%emt 0:00:03]} 2. d4 {[%emt 0:00:10]} d5 {[%emt 0:00:06]} 3. exd5 {[%emt 0:00:13]} cxd5 {[%emt 0:00:06]} 4. Bd3 {[%emt 0:00:12]} Nc6 {[%emt 0:00:10]} 5. c3 {[%emt 0:00:11]} Qc7 {[%emt 0:00:27]} 6. h3 {[%emt 0:00:30]} g6 {[%emt 0:01:12] is now more promising than 6...Nf6.} 7. Ne2 {[%emt 0:01:22] B13: Caro-Kann: Exchange Variation and Panov-Botvinnik Attack.} Bf5 {[%emt 0:09:53]} 8. Bxf5 {[%emt 0:08:38]} gxf5 {[%emt 0:00:05]} 9. Bf4 {[%emt 0:01:08][%cal Bc1f4,Bf4d6,Bd6c5][%mdl 32] White is slightly better.} Qd7 {[%emt 0:01:19]} 10. O-O {[#]} e6 $146 ({Predecessor:} 10... Nf6 11. Nd2 e6 12. Re1 Bd6 13. Nf3 Ne4 14. Ne5 Qc7 15. f3 Nf6 16. Nxc6 bxc6 {½-½ Genocchio,D (2440)-Rombaldoni,D (2533) ITA-ch 71st Perugia 2011 (1)}) 11. c4 Nge7 {[%emt 0:01:01]} 12. c5 {[%emt 0:32:37]} Bg7 13. Nbc3 O-O {[%emt 0:12:27]} 14. Bd6 {[%emt 0:00:00]} b6 {[%emt 0:05:42]} 15. Rb1 {[%emt 0:00:00]} bxc5 {[%emt 0:06:05]} 16. Bxc5 {[%emt 0:00:00]} a5 {[%emt 0:04:25]} 17. Nf4 {[%emt 0:00:00]} Kh8 {[%emt 0:05:12]} 18. a3 {[%emt 0:02:58][%cal Ba2a3,Ba3b4,Bb4b5][%mdl 32] White is more active.} Rfb8 {[%emt 0:12:09]} 19. b4 {[%emt 0:02:43]} axb4 {[%emt 0:01:07]} 20. axb4 {[%emt 0:00:04]} Nc8 {[%emt 0:01:28]} (20... Ng6 $14 21. Nh5 Bh6) 21. b5 {[%emt 0:14:29]} Na5 {[%emt 0:01:27]} 22. Nd3 {[%emt 0:04:05]} Nc4 {[%emt 0:02:24]} 23. Nb2 {[%emt 0:08:53]} (23. Qe2 $11) 23... N8d6 {[%emt 0:04:08]} 24. Nxc4 {[%emt 0:00:12]} Nxc4 {[%emt 0:00:43]} 25. Qd3 {[%emt 0:01:54]} Rb7 {[%emt 0:07:25]} 26. Ra1 {[%emt 0:01:28]} Rg8 {[%emt 0:01:00]} 27. Ra6 {[%emt 0:01:58]} Qd8 {[%emt 0:02:17]} 28. Rfa1 {[%emt 0:02:16]} (28. b6 {keeps more tension.} Bh6 29. Ra7 Qg5 30. Qg3) 28... Rb8 {[%emt 0:03:19]} 29. Ra7 {[%emt 0:04:34]} f6 {[%emt 0:03:25][%mdl 8192] [#] Black cannot hold the game after this.} (29... Qf6 $14) 30. Re7 {[%emt 0:02:26]} Re8 {[%emt 0:04:43]} 31. Rxe8+ {[%emt 0:02:30]} Qxe8 {[%emt 0:00:01]} 32. Qe2 {[%emt 0:00:55]} Qg8 {[%emt 0:02:15]} 33. Ra7 {[%emt 0:02:07]} h6 $2 {[%emt 0:02:04]} (33... Bf8 34. Qh5 Qg6 35. Qxg6 hxg6 36. Bxf8 Rxf8) 34. Qh5 $18 {[%emt 0:02:54] White is clearly winning.} Rc8 {[%emt 0:03:21]} 35. Qg6 {[%emt 0:01:26]} Nd2 {[%emt 0:02:35]} (35... Qh7 $142 36. Qxh7+ Kxh7) 36. b6 {[%emt 0:01:09]} Nc4 {[%emt 0:02:29]} 37. Nb5 {[%emt 0:02:46][%cal Bc3b5,Bb5c7,Bc7e6][%mdl 32]} Rb8 {[%emt 0:01:37]} 38. Nc7 {[%emt 0:01:04]} Bf8 {[%emt 0:00:42]} 39. Qxg8+ {[%emt 0:00:41]} Kxg8 {[%emt 0:00:01]} 40. b7 {[%emt 0:00:00]} Na5 {[%emt 0:00:00]} 41. Rxa5 {[%emt 0:02:25] [#] Black must now prevent Ra7.} Rxb7 {[%emt 0:01:02]} 42. Nxe6 {[%emt 0:01:17]} Bxc5 {[%emt 0:06:10]} 43. Rxc5 {[%emt 0:01:30] Hoping for Rc8+. KRN-KR} Rb1+ {[%emt 0:00:27]} 44. Kh2 {[%emt 0:00:05]} Rb2 {[%emt 0:00:30]} 45. Kg3 {[%emt 0:00:32]} h5 {[%emt 0:00:46]} 46. h4 {[%emt 0:00:21]} Rb3+ {[%emt 0:01:03]} 47. f3 {[%emt 0:00:18] Weighted Error Value: White=0.19 (very precise) /Black=0.46} 1-0

[Event "European Women-ch 2023"]
[Site "Petrovac"]
[Date "2023.03.20"]
[Round "3.21"]
[White "Tsotsonava, Elene"]
[Black "Popovic, Mateja"]
[Result "*"]
[WhiteElo "2030"]
[BlackElo "1832"]
[Annotator "TA"]
[PlyCount "32"]
[EventDate "2023.03.15"]
[EventType "swiss"]
[EventCountry "MNE"]
[SourceTitle "playchess.com"]
[Source "ChessBase"]
[SourceQuality "1"]
[TimeControl "40/5400+30:1800+30"]

{[%evp 11,18,12,33,33,33,20,28,14,25]} 1. e4 {[%emt 0:00:02]} c6 {[%emt 0:00:03]} 2. d4 {[%emt 0:00:10]} d5 {[%emt 0:00:06]} 3. exd5 {[%emt 0:00:13]} cxd5 {[%emt 0:00:06]} 4. Bd3 {[%emt 0:00:12]} Nc6 {[%emt 0:00:10]} 5. c3 {[%emt 0:00:11]} Qc7 {[%emt 0:00:27]} 6. h3 {[%emt 0:00:30]} g6 {[%emt 0:01:12] is recently more successful than 6...Nf6.} 7. Ne2 {[%emt 0:01:22] B13: Caro-Kann: Exchange Variation and Panov-Botvinnik Attack.} Bf5 {[%emt 0:09:53]} 8. Bxf5 {[%emt 0:08:38]} gxf5 {[%emt 0:00:05]} 9. Bf4 {[%emt 0:01:08]} Qd7 {[%emt 0:01:20] [#] White took control after the opening.   Weighted Error Value: White=0.08 (flawless) /Black=0.10 (very precise)} {Predecessor:} 10. Nd2 $146 Nf6 11. Nf3 Rg8 12. Rg1 e6 13. Nc1 Ne4 14. Nd3 f6 15. Qe2 Bd6 16. Bxd6 Qxd6 {0-1 Tari,A (2639)-Mamedyarov,S (2770) NIC Classic Prelim rapid 2021 (12)} *